[Event "12th National Amateur Chess-ch 2025"]
[Site "Bihar"]
[Date "2025.03.29"]
[Round "8.15"]
[White "Chinnam Vyshnavi"]
[Black "Theephigaa K P"]
[Result "1-0"]
[Annotator "NA RC"]
[ECO "C78"]
[WhiteElo "1793"]
[BlackElo "1792"]
[PlyCount "83"]
[EventDate "2025.03.25"]
[EventCountry "IND"]
[SourceTitle "playchess.com"]
[Source "ChessBase"]
[SourceQuality "1"]
[TimeControl "5400+30"]

1. e4 {[%emt 0:00:09]} e5 {[%emt 0:09:58]} 2. Nf3 {[%emt 0:00:23]} Nc6 {[%emt 0:00:10]} 3. Bb5 {[%emt 0:00:08]} a6 {[%emt 0:00:11]} 4. Ba4 {[%emt 0:00:05]} Nf6 {[%emt 0:00:14]} 5. O-O {[%emt 0:00:11]} b5 {[%emt 0:00:31]} 6. Bb3 {[%emt 0:00:06]} Bc5 {[%emt 0:00:31]} 7. c3 {[%emt 0:00:50]} d6 {[%emt 0:00:15]} 8. d4 {[%emt 0:01:10]} Bb6 {[%emt 0:00:23]} 9. a4 {[%emt 0:00:11]} Rb8 {[%emt 0:00:49]} 10. a5 {[%emt 0:00:24]} Ba7 {[%emt 0:01:14]} 11. h3 {[%emt 0:00:08]} O-O {[%emt 0:02:09]} 12. Be3 {[%emt 0:01:47]} Ra8 {[%emt 0:10:20]} 13. Nbd2 {[%emt 0:14:06]} Re8 {[%emt 0:04:03]} 14. Ng5 {[%emt 0:01:54]} Rf8 {[%emt 0:02:00]} 15. Ngf3 {[%emt 0:04:03]} Re8 {[%emt 0:02:05]} 16. Ng5 {[%emt 0:01:13]} Rf8 {[%emt 0:08:36]} 17. Ndf3 {[%emt 0:10:17]} Qe7 {[%emt 0:20:36]} 18. dxe5 {[%emt 0:20:01]} dxe5 {[%emt 0:17:10]} 19. Nh4 {[%emt 0:10:58]} Bd7 {[%emt 0:08:33]} 20. Qf3 {[%emt 0:07:09]} Nd8 {[%emt 0:04:29]} 21. Rad1 {[%emt 0:06:47]} c5 {[%emt 0:02:24]} 22. Bd5 {[%emt 0:06:18]} Nxd5 {[%emt 0:01:09]} 23. exd5 {[%emt 0:00:02]} Rc8 {[%emt 0:03:29]} 24. Nf5 {[%emt 0:05:43]} Qf6 {[%emt 0:00:35]} 25. g4 {[%emt 0:00:05]} Bxf5 {[%emt 0:00:29]} 26. gxf5 {[%emt 0:00:01]} g6 {[%emt 0:00:28]} 27. Ne4 {[%emt 0:01:21]} Qxf5 {[%emt 0:00:28]} 28. Qxf5 {[%emt 0:00:42]} gxf5 {[%emt 0:00:02]} 29. Nd6 {[%emt 0:00:20]} Rc7 {[%emt 0:00:47]} 30. Bh6 {[%emt 0:00:42]} f4 {[%emt 0:01:07]} 31. Kh2 {[%emt 0:00:22]} f6 {[%emt 0:00:11]} 32. Rg1+ {[%emt 0:00:13]} Kh8 {[%emt 0:00:11]} 33. Bxf8 {[%emt 0:00:07]} Rd7 {[%emt 0:00:34]} 34. Nf5 {[%emt 0:00:16]} Nf7 {[%emt 0:00:43]} 35. Bg7+ {[%emt 0:00:21]} Kg8 {[%emt 0:00:02]} 36. Bxf6+ {[%emt 0:00:09]} Kf8 {[%emt 0:00:17]} 37. Rg7 {[%emt 0:01:12]} Rb7 {[%emt 0:01:08]} 38. Nh6 {[%emt 0:01:45]} Ke8 {[%emt 0:00:27]} 39. Rg8+ {[%emt 0:00:10]} Kd7 {[%emt 0:00:03]} 40. Nxf7 {[%emt 0:00:05]} c4 {[%emt 0:01:04]} 41. Rd8+ {[%emt 0:00:13]} Kc7 {[%emt 0:00:01]} 42. Bxe5# {[%emt 0:00:07]} 1-0

[Event "12th National Amateur Chess-ch 2025"]
[Site "Bihar"]
[Date "2025.03.29"]
[Round "8.16"]
[White "Arpita Patankar"]
[Black "Nivedita V C"]
[Result "0-1"]
[Annotator "RC"]
[ECO "E65"]
[WhiteElo "1750"]
[BlackElo "1950"]
[PlyCount "54"]
[EventDate "2025.03.25"]
[EventCountry "IND"]
[SourceTitle "playchess.com"]
[Source "ChessBase"]
[SourceQuality "1"]
[TimeControl "5400+30"]

1. d4 {[%emt 0:00:24]} Nf6 {[%emt 0:02:32]} 2. c4 {[%emt 0:00:07]} g6 {[%emt 0:00:29]} 3. g3 {[%emt 0:00:04]} Bg7 {[%emt 0:00:04]} 4. Bg2 {[%emt 0:00:07]} O-O {[%emt 0:00:05]} 5. Nc3 {[%emt 0:00:05]} d6 {[%emt 0:00:09]} 6. Nf3 {[%emt 0:00:10]} Nbd7 {[%emt 0:01:25]} 7. O-O {[%emt 0:00:09]} c5 {[%emt 0:00:02]} 8. d5 {[%emt 0:01:20]} a6 {[%emt 0:00:06]} 9. Bf4 {[%emt 0:08:12]} Nh5 {[%emt 0:09:25]} 10. Bg5 {[%emt 0:08:30]} b5 {[%emt 0:05:42]} 11. g4 {[%emt 0:07:30]} Nhf6 {[%emt 0:01:56]} 12. cxb5 {[%emt 0:04:04]} Nxg4 {[%emt 0:09:05]} 13. bxa6 {[%emt 0:07:30]} Bxa6 {[%emt 0:00:16]} 14. Qc2 {[%emt 0:02:06]} Nge5 {[%emt 0:04:48]} 15. Nxe5 {[%emt 0:09:18]} Nxe5 {[%emt 0:00:07]} 16. b3 {[%emt 0:03:44]} h6 {[%emt 0:05:13]} 17. Bc1 {[%emt 0:03:45]} Qa5 {[%emt 0:00:45]} 18. Bb2 {[%emt 0:05:08]} Rfc8 {[%emt 0:00:47]} 19. Bh3 {[%emt 0:03:38]} Rc7 {[%emt 0:22:45]} 20. f4 {[%emt 0:03:09]} Nd7 {[%emt 0:00:06]} 21. Ne4 {[%emt 0:04:13]} Bd4+ {[%emt 0:05:16]} 22. Kh1 {[%emt 0:13:07]} Bb7 {[%emt 0:05:17]} 23. Bxd4 {[%emt 0:06:03]} cxd4 {[%emt 0:00:17]} 24. Qd3 {[%emt 0:00:42]} Qxd5 {[%emt 0:00:27]} 25. Bg2 {[%emt 0:00:18]} Nc5 {[%emt 0:00:29]} 26. Qh3 {[%emt 0:01:18]} Nxe4 {[%emt 0:00:08]} 27. f5 {[%emt 0:00:18]} Ng5 {[%emt 0:00:19]} 0-1

[Event "12th National Amateur Chess-ch 2025"]
[Site "Bihar"]
[Date "2025.03.29"]
[Round "8.17"]
[White "Maya Ameen"]
[Black "Kashvy Sabharwal"]
[Result "1/2-1/2"]
[Annotator "NA RC"]
[ECO "C10"]
[WhiteElo "1635"]
[BlackElo "1640"]
[PlyCount "105"]
[EventDate "2025.03.25"]
[EventCountry "IND"]
[SourceTitle "playchess.com"]
[Source "ChessBase"]
[SourceQuality "1"]
[TimeControl "5400+30"]

1. e4 {[%emt 0:00:02]} e6 {[%emt 0:02:36]} 2. d4 {[%emt 0:00:03]} d5 {[%emt 0:00:05]} 3. Nc3 {[%emt 0:00:04]} Be7 {[%emt 0:00:28]} 4. Bd3 {[%emt 0:00:11]} c5 {[%emt 0:00:09]} 5. dxc5 {[%emt 0:00:12]} Nf6 {[%emt 0:00:21]} 6. exd5 {[%emt 0:00:38]} exd5 {[%emt 0:00:05]} 7. Nf3 {[%emt 0:00:20]} O-O {[%emt 0:00:56]} 8. Be3 {[%emt 0:01:25]} Nbd7 {[%emt 0:00:46]} 9. O-O {[%emt 0:02:16]} Nxc5 {[%emt 0:01:00]} 10. Be2 {[%emt 0:01:51]} Re8 {[%emt 0:11:55]} 11. Bd4 {[%emt 0:09:52]} Nce4 {[%emt 0:12:23]} 12. Bb5 {[%emt 0:05:54]} Rf8 {[%emt 0:11:26]} 13. Re1 {[%emt 0:06:00]} Bg4 {[%emt 0:09:03]} 14. h3 {[%emt 0:06:30]} Bh5 {[%emt 0:02:38]} 15. g4 {[%emt 0:06:12]} Nxc3 {[%emt 0:05:34]} 16. Bxc3 {[%emt 0:00:30]} Bg6 {[%emt 0:01:07]} 17. Bd3 {[%emt 0:06:28]} Be4 {[%emt 0:07:46]} 18. Bxe4 {[%emt 0:01:59]} Nxe4 {[%emt 0:00:20]} 19. Bd4 {[%emt 0:08:47]} Qc7 {[%emt 0:04:05]} 20. Be5 {[%emt 0:02:47]} Qb6 {[%emt 0:02:19]} 21. Bd4 {[%emt 0:00:41]} Qh6 {[%emt 0:02:46]} 22. Kg2 {[%emt 0:01:49]} Rfd8 {[%emt 0:05:44]} 23. Qc1 {[%emt 0:07:46]} Qd6 {[%emt 0:04:07]} 24. Nd2 {[%emt 0:00:00]} Nxd2 {[%emt 0:05:20]} 25. Qxd2 {[%emt 0:00:00]} Bf6 {[%emt 0:00:20]} 26. Rad1 {[%emt 0:01:19]} Rac8 {[%emt 0:02:47]} 27. c3 {[%emt 0:01:13]} h6 {[%emt 0:01:39]} 28. Bxf6 {[%emt 0:01:16]} Qxf6 {[%emt 0:00:02]} 29. Qd4 {[%emt 0:00:21]} Qa6 {[%emt 0:02:01]} 30. a3 {[%emt 0:00:34]} Rc4 {[%emt 0:00:21]} 31. Qd3 {[%emt 0:02:55]} Qc6 {[%emt 0:01:02]} 32. f3 {[%emt 0:00:46]} Qb6 {[%emt 0:00:47]} 33. Rd2 {[%emt 0:01:26]} Qf6 {[%emt 0:00:47]} 34. Qe3 {[%emt 0:00:57]} Rf4 {[%emt 0:01:20]} 35. Red1 {[%emt 0:01:31]} Rd6 {[%emt 0:01:17]} 36. Rxd5 {[%emt 0:01:49]} Re6 {[%emt 0:00:09]} 37. Qd3 {[%emt 0:00:43]} g6 {[%emt 0:00:24]} 38. Rd2 {[%emt 0:01:44]} Re5 {[%emt 0:01:03]} 39. Rxe5 {[%emt 0:00:54]} Qxe5 {[%emt 0:00:02]} 40. Re2 {[%emt 0:00:30]} Qf6 {[%emt 0:00:20]} 41. Re4 {[%emt 0:00:29]} Rxe4 {[%emt 0:01:15]} 42. Qxe4 {[%emt 0:00:05]} Qb6 {[%emt 0:00:08]} 43. Qe8+ {[%emt 0:00:12]} Kg7 {[%emt 0:00:14]} 44. Qe5+ {[%emt 0:00:04]} Kg8 {[%emt 0:00:12]} 45. Qe2 {[%emt 0:00:29]} Qb3 {[%emt 0:00:32]} 46. Kf2 {[%emt 0:00:38]} Qb6+ {[%emt 0:00:19]} 47. Kg2 {[%emt 0:00:15]} Qb3 {[%emt 0:00:05]} 48. Qd2 {[%emt 0:00:16]} Kh7 {[%emt 0:00:40]} 49. Kg3 {[%emt 0:00:16]} Qb6 {[%emt 0:00:34]} 50. f4 {[%emt 0:00:47]} Qg1+ {[%emt 0:00:23]} 51. Kf3 {[%emt 0:03:41]} Qf1+ {[%emt 0:00:44]} 52. Kg3 {[%emt 0:00:04]} Qg1+ {[%emt 0:00:04]} 53. Kh4 {[%emt 0:01:34]} 1/2-1/2

[Event "12th National Amateur Chess-ch 2025"]
[Site "Bihar"]
[Date "2025.03.29"]
[Round "8.18"]
[White "Aayusree Sarkar"]
[Black "Silarapu Devi Dedipyasri"]
[Result "1-0"]
[Annotator "NA RC"]
[ECO "C01"]
[WhiteElo "1677"]
[BlackElo "1587"]
[PlyCount "57"]
[EventDate "2025.03.25"]
[EventCountry "IND"]
[SourceTitle "playchess.com"]
[Source "ChessBase"]
[SourceQuality "1"]
[TimeControl "5400+30"]

1. e4 {[%emt 0:00:06]} e6 {[%emt 0:00:19]} 2. d4 {[%emt 0:00:09]} d5 {[%emt 0:00:06]} 3. exd5 {[%emt 0:00:21]} exd5 {[%emt 0:00:10]} 4. Nc3 {[%emt 0:00:12]} Nf6 {[%emt 0:00:08]} 5. Bg5 {[%emt 0:00:45]} c6 {[%emt 0:00:49]} 6. Qd2 {[%emt 0:00:16]} h6 {[%emt 0:00:59]} 7. Bf4 {[%emt 0:00:53]} Bd6 {[%emt 0:00:34]} 8. O-O-O {[%emt 0:00:26]} Qc7 {[%emt 0:05:22]} 9. Re1+ {[%emt 0:01:48]} Be6 {[%emt 0:00:35]} 10. Bxd6 {[%emt 0:06:12]} Qxd6 {[%emt 0:00:13]} 11. f4 {[%emt 0:00:11]} O-O {[%emt 0:01:16]} 12. Bd3 {[%emt 0:00:23]} b5 {[%emt 0:01:28]} 13. f5 {[%emt 0:01:02]} Bd7 {[%emt 0:00:42]} 14. Nf3 {[%emt 0:00:53]} a5 {[%emt 0:05:25]} 15. g4 {[%emt 0:00:26]} a4 {[%emt 0:02:47]} 16. g5 {[%emt 0:00:20]} Nh5 {[%emt 0:00:26]} 17. Ne5 {[%emt 0:04:16]} hxg5 {[%emt 0:14:56]} 18. Qxg5 {[%emt 0:02:16]} Qh6 {[%emt 0:00:41]} 19. Qxh6 {[%emt 0:00:08]} gxh6 {[%emt 0:00:03]} 20. Rhg1+ {[%emt 0:00:19]} Kh8 {[%emt 0:00:58]} 21. Ref1 {[%emt 0:09:40]} Nf6 {[%emt 0:14:48]} 22. Rf4 {[%emt 0:03:34]} b4 {[%emt 0:05:29]} 23. Ne2 {[%emt 0:02:30]} b3 {[%emt 0:04:38]} 24. a3 {[%emt 0:00:30]} Kh7 {[%emt 0:07:03]} 25. Ng4 {[%emt 0:04:23]} Nh5 {[%emt 0:06:36]} 26. f6+ {[%emt 0:00:19]} Kh8 {[%emt 0:00:19]} 27. Nxh6 {[%emt 0:00:11]} Na6 {[%emt 0:06:08]} 28. Rg8+ {[%emt 0:00:14]} Rxg8 {[%emt 0:02:28]} 29. Nxf7# {[%emt 0:00:06]} 1-0